fUSD/lending_fUSD_20250113
["ID","MTS","AMOUNT","RATE_DAILY","PERIOD"]
[348762642,1736775049377,-500.0,0.00010547,2]
[348762643,1736775049389,-500.0,0.00010547,2]
[348762644,1736775049401,-500.0,0.00010547,2]
[348762645,1736775049413,-500.0,0.00010547,2]
[348762646,1736775049424,-588.11,0.00010547,2]
[348762647,1736775049436,-2521.29,0.00010547,2]
[348762648,1736775049450,-502.33825004,0.00010573,2]
[348762649,1736775049461,-151.11130482,0.00010573,2]
[348762650,1736775049473,-523.34,0.00010639,2]
[348762651,1736775049485,-152.67,0.0001077,2]
[348762652,1736775049497,-500.0,0.00010816,2]
[348762653,1736775049508,-500.0,0.00010816,2]
[348762654,1736775049519,-500.0,0.00010816,2]
[348762655,1736775049531,-500.0,0.00010816,2]
[348762656,1736775049542,-500.0,0.00010816,2]
[348762657,1736775049555,-500.0,0.00010816,2]
[348762658,1736775049566,-500.0,0.00010816,2]
[348762659,1736775049578,-500.0,0.00010816,2]
[348762660,1736775049589,-500.0,0.00010816,2]
[348762661,1736775049601,-500.0,0.00010816,2]
[348762662,1736775049613,-500.0,0.00010816,2]
[348762663,1736775049624,-500.0,0.00010816,2]
[348762664,1736775049635,-500.0,0.00010816,2]
[348762665,1736775049646,-574.3,0.00010816,2]
[348762666,1736775049658,-641.51,0.00010816,2]
[348762667,1736775049670,-500.0,0.00010816,2]
[348762668,1736775049682,-625.72,0.00010816,2]
[348762669,1736775049696,-500.0,0.00010816,2]
[348762670,1736775049709,-500.0,0.00010816,2]
[348762671,1736775049721,-617.79,0.00010816,2]
[348762672,1736775049734,-500.0,0.00010816,2]
[348762673,1736775049747,-500.0,0.00010816,2]
[348762674,1736775049759,-500.0,0.00010816,2]
[348762675,1736775049770,-500.0,0.00010816,2]
[348762676,1736775049782,-500.0,0.00010816,2]
[348762677,1736775049794,-686.43,0.00010816,2]
[348762678,1736775049806,-501.45,0.00010816,2]
[348762679,1736775049818,-514.11,0.00010816,2]
[348762680,1736775049830,-500.0,0.00010816,2]
[348762681,1736775049842,-184.94,0.00010816,2]
[348762682,1736775049854,-580.94,0.00010816,2]
[348762683,1736775049866,-376.9589963,0.00010816,2]
[348762684,1736775049878,-500.0,0.00010816,2]
[348762685,1736775049890,-500.0,0.00010816,2]
[348762686,1736775049901,-500.0,0.00010816,2]
[348762687,1736775049913,-606.51,0.00010816,2]
[348762688,1736775049923,-500.0,0.00010816,2]
[348762689,1736775049932,-565.25,0.00010816,2]
[348762690,1736775049943,-500.0,0.00010816,2]
[348762691,1736775049953,-536.63,0.00010816,2]
[348762692,1736775049963,-500.0,0.00010816,2]
[348762693,1736775049972,-2084.23,0.00010816,2]
[348762694,1736775049982,-500.0,0.00010816,2]
[348762695,1736775049992,-500.0,0.00010816,2]
[348762696,1736775050001,-500.0,0.00010816,2]
[348762697,1736775050011,-500.0,0.00010816,2]
[348762698,1736775050021,-1894.88,0.00010816,2]
[348762699,1736775050030,-597.39,0.00010816,2]
[348762700,1736775050319,-500.0,0.00010816,2]
[348762701,1736775050344,-552.99891143,0.00010816,2]
[348762702,1736775050355,-510.29,0.00010816,2]
[348762703,1736775050364,-500.0,0.00010816,2]
[348762704,1736775050374,-500.0,0.00010816,2]
[348762705,1736775050383,-500.0,0.00010816,2]
[348762706,1736775050393,-500.0,0.00010816,2]
[348762707,1736775050402,-500.0,0.00010816,2]
[348762708,1736775050411,-500.0,0.00010816,2]
[348762709,1736775050420,-500.0,0.00010816,2]
[348762710,1736775050430,-643.52130247,0.00010816,2]
[348762711,1736775050443,-500.0,0.00010816,2]
[348762712,1736775050452,-500.0,0.00010816,2]
[348762713,1736775050462,-500.0,0.00010816,2]
[348762714,1736775050471,-500.0,0.00010816,2]
[348762715,1736775050480,-500.0,0.00010816,2]
[348762716,1736775050490,-507.99,0.00010816,2]
[348762717,1736775050499,-296.9534667,0.00010816,2]
[348762718,1736775050509,-500.0,0.00010816,2]
[348762719,1736775050518,-500.0,0.00010816,2]
[348762720,1736775050527,-859.77,0.00010816,2]
[348762721,1736775050537,-500.0,0.00010816,2]
[348762722,1736775050547,-500.0,0.00010816,2]
[348762723,1736775050556,-500.0,0.00010816,2]
[348762724,1736775050566,-426.191775,0.00010816,2]
[348762725,1736775050575,-500.0,0.00010816,2]
[348762726,1736775050585,-500.0,0.00010816,2]
[348762727,1736775050594,-500.0,0.00010816,2]
[348762728,1736775050604,-684.69,0.00010816,2]
[348762729,1736775050614,-500.0,0.00010816,2]
[348762730,1736775050623,-684.69,0.00010816,2]
[348762731,1736775050633,-684.69,0.00010816,2]
[348762732,1736775050642,-500.0,0.00010816,2]
[348762733,1736775050651,-684.69,0.00010816,2]
[348762734,1736775050661,-684.84367859,0.00010816,2]
[348762735,1736775050670,-177.88,0.00010816,2]
[348762736,1736775050679,-458.51190113,0.00010816,2]
[348762737,1736775050688,-411.67545181,0.00010816,2]
[348762738,1736775050700,-500.0,0.00010816,2]
[348762739,1736775050710,-292.65404616,0.00010816,2]
[348762740,1736775050718,-500.0,0.00010816,2]
[348762741,1736775050728,-500.0,0.00010817,2]
[348762742,1736775050739,-500.0,0.00010817,2]
[348762743,1736775050748,-500.0,0.00010817,2]
[348762744,1736775050758,-500.0,0.00010817,2]
[348762745,1736775050767,-500.0,0.00010817,2]
[348762746,1736775050776,-500.0,0.00010817,2]
[348762747,1736775050786,-500.0,0.00010817,2]
[348762748,1736775050795,-500.0,0.00010817,2]
[348762749,1736775050804,-572.68,0.00010817,2]
[348762750,1736775050813,-500.0,0.00010817,2]
[348762751,1736775050823,-500.0,0.00010817,2]
[348762752,1736775050831,-500.0,0.00010817,2]
[348762753,1736775050841,-500.0,0.00010817,2]
[348762754,1736775050850,-500.0,0.00010817,2]
[348762755,1736775050859,-500.0,0.00010817,2]
[348762756,1736775050868,-500.0,0.00010817,2]
[348762757,1736775050877,-500.0,0.00010817,2]
[348762758,1736775050886,-500.0,0.00010817,2]
[348762759,1736775050895,-620.82,0.00010817,2]
[348762760,1736775050904,-536.67,0.00010817,2]
[348762761,1736775050913,-500.0,0.00010817,2]
[348762762,1736775050922,-602.25,0.00010817,2]
[348762763,1736775050931,-586.93,0.00010817,2]
[348762764,1736775050941,-500.0,0.00010817,2]
[348762765,1736775050951,-1126.3,0.00010817,2]
[348762766,1736775050960,-3675.88,0.00010817,2]
[348762767,1736775050970,-500.0,0.00010817,2]
[348762768,1736775050979,-500.0,0.00010817,2]
[348762769,1736775050988,-500.0,0.00010817,2]
[348762770,1736775050997,-1000.48,0.00010817,2]
[348762771,1736775051006,-846.04,0.00010817,2]
[348762772,1736775051015,-1073.02,0.00010817,2]
[348762773,1736775051024,-2090.63,0.00010817,2]
[348762774,1736775051034,-941.86,0.00010817,2]
[348762775,1736775051043,-500.0,0.00010817,2]
[348762776,1736775051053,-1625.05,0.00010817,2]
[348762777,1736775051062,-500.0,0.00010817,2]
[348762778,1736775051071,-2746.81,0.00010817,2]
[348762779,1736775051081,-999.43,0.00010817,2]
[348762780,1736775051090,-814.0,0.00010817,2]
[348762781,1736775051099,-500.0,0.00010817,2]
[348762782,1736775051108,-500.0,0.00010817,2]
[348762783,1736775051117,-944.93,0.00010817,2]
[348762784,1736775051126,-1308.06,0.00010817,2]
[348762785,1736775051134,-926.15,0.00010817,2]
[348762786,1736775051144,-543.41,0.00010817,2]
[348762787,1736775051153,-1553.1,0.00010817,2]
[348762788,1736775051162,-949.25,0.00010817,2]
[348762789,1736775051171,-727.81,0.00010817,2]
[348762790,1736775051180,-260.238483,0.00010817,2]
[348762791,1736775051193,-1515.94,0.00010817,2]
[348762792,1736775051202,-911.1,0.00010817,2]
[348762793,1736775051210,-978.45,0.00010817,2]
[348762794,1736775051219,-1156.58,0.00010817,2]
[348762795,1736775051228,-171.942336,0.00010817,2]
[348762796,1736775051237,-500.0,0.00010817,2]
[348762797,1736775051247,-2170.98,0.00010817,2]
[348762798,1736775051256,-1613.15,0.00010817,2]
[348762799,1736775051265,-1520.31,0.00010817,2]
[348762800,1736775051274,-1130.01,0.00010817,2]
[348762801,1736775051283,-3195.42,0.00010817,2]
[348762802,1736775051292,-562.58,0.00010818,2]
[348762803,1736775051301,-500.0,0.00010818,2]
[348762804,1736775051310,-161.11,0.00010818,2]
[348762805,1736775051319,-500.0,0.00010818,2]
[348762806,1736775051328,-500.0,0.00010818,2]
[348762807,1736775051337,-217.7408855,0.00010818,2]
[348762808,1736775051346,-500.0,0.00010818,2]
[348762809,1736775051355,-500.0,0.00010818,2]
[348762810,1736775051364,-500.0,0.00010818,2]
[348762811,1736775051372,-460.90310715,0.00010818,2]
[348762812,1736775051382,-500.0,0.00010818,2]
[348762813,1736775051391,-500.0,0.00010818,2]
[348762814,1736775051400,-500.0,0.00010818,2]
[348762815,1736775051409,-500.0,0.00010818,2]
[348762816,1736775051418,-500.0,0.00010818,2]
[348762817,1736775051427,-514.4,0.00010818,2]
[348762818,1736775051437,-442.1,0.00010818,2]
[348762819,1736775051451,-500.0,0.00010818,2]
[348762820,1736775051460,-500.0,0.00010818,2]
[348762821,1736775051470,-500.0,0.00010818,2]
[348762822,1736775051479,-500.0,0.00010818,2]
[348762823,1736775051488,-635.36,0.00010818,2]
[348762824,1736775051497,-500.0,0.00010818,2]
[348762825,1736775051506,-500.0,0.00010818,2]
[348762826,1736775051515,-500.0,0.00010818,2]
[348762827,1736775051524,-500.0,0.00010818,2]
[348762828,1736775051534,-500.0,0.00010818,2]
[348762829,1736775051543,-500.0,0.00010818,2]
[348762830,1736775051552,-500.0,0.00010818,2]
[348762831,1736775051560,-500.0,0.00010818,2]
[348762832,1736775051569,-500.0,0.00010818,2]
[348762833,1736775051578,-500.0,0.00010818,2]
[348762834,1736775051587,-500.0,0.00010818,2]
[348762835,1736775051596,-500.0,0.00010818,2]
[348762836,1736775051606,-500.0,0.00010818,2]
[348762837,1736775051615,-339.52,0.00010818,2]
[348762838,1736775051623,-500.0,0.00010818,2]
[348762839,1736775051632,-500.0,0.00010818,2]
[348762840,1736775051641,-500.0,0.00010818,2]
[348762841,1736775051650,-500.0,0.00010818,2]
[348762842,1736775051659,-500.0,0.00010818,2]
[348762843,1736775051668,-500.0,0.00010818,2]
[348762844,1736775051677,-500.0,0.00010818,2]
[348762845,1736775051686,-500.0,0.00010818,2]
[348762846,1736775051699,-500.0,0.00010818,2]
[348762847,1736775051708,-500.0,0.00010818,2]
[348762848,1736775051717,-500.0,0.00010818,2]
[348762849,1736775051726,-500.0,0.00010818,2]
[348762850,1736775051735,-500.0,0.00010818,2]
[348762851,1736775051747,-500.0,0.00010818,2]
[348762852,1736775051756,-550.68,0.00010818,2]
[348762853,1736775051766,-500.0,0.00010818,2]
[348762854,1736775051774,-500.0,0.00010818,2]
[348762855,1736775051785,-500.0,0.00010818,2]
[348762856,1736775051795,-500.0,0.00010818,2]
[348762857,1736775051805,-500.0,0.00010818,2]
[348762858,1736775051814,-500.0,0.00010818,2]
[348762859,1736775051826,-500.0,0.00010818,2]
[348762860,1736775051835,-500.0,0.00010818,2]
[348762861,1736775051845,-508.40949347,0.00010818,2]
[348762862,1736775051854,-500.0,0.00010818,2]
[348762863,1736775051863,-500.0,0.00010818,2]
[348762864,1736775051872,-500.0,0.00010818,2]
[348762865,1736775051882,-500.0,0.00010818,2]
[348762866,1736775051890,-308.10149026,0.00010818,2]
[348762867,1736775051899,-500.0,0.00010818,2]
[348762868,1736775051909,-500.0,0.00010818,2]
[348762869,1736775051918,-500.0,0.00010818,2]
[348762870,1736775051927,-504.12417592,0.00010818,2]
[348762871,1736775051937,-500.0,0.00010818,2]
[348762872,1736775051949,-500.0,0.00010818,2]
[348762873,1736775051958,-500.0,0.00010818,2]
[348762874,1736775051967,-500.0,0.00010818,2]
[348762875,1736775051977,-500.0,0.00010818,2]
[348762876,1736775051987,-500.0,0.00010818,2]
[348762877,1736775051996,-500.0,0.00010818,2]
[348762878,1736775052006,-422.65916668,0.00010818,2]
[348762879,1736775052015,-573.60246127,0.00010818,2]
[348762880,1736775052024,-500.0,0.00010818,2]
[348762881,1736775052034,-502.85386322,0.00010818,2]
[348762882,1736775052043,-259.43056555,0.00010818,2]
[348762883,1736775052053,-500.0,0.00010818,2]
[348762884,1736775052062,-500.0,0.00010818,2]
[348762885,1736775052071,-500.0,0.00010818,2]
[348762886,1736775052080,-500.0,0.00010818,2]
[348762887,1736775052090,-500.0,0.00010818,2]
[348762888,1736775052098,-500.0,0.00010818,2]
[348762889,1736775052110,-500.0,0.00010818,2]
[348762890,1736775052120,-500.0,0.00010818,2]
[348762891,1736775052130,-500.0,0.00010818,2]
[348762892,1736775052139,-500.0,0.00010818,2]
[348762893,1736775052148,-500.0,0.00010818,2]
[348762894,1736775052157,-500.0,0.00010818,2]
[348762895,1736775052166,-807.87,0.00010818,2]
[348762896,1736775052175,-500.0,0.00010818,2]
[348762897,1736775052184,-500.0,0.00010818,2]
[348762898,1736775052196,-500.0,0.00010818,2]
[348762899,1736775052205,-500.0,0.00010818,2]
[348762900,1736775052214,-500.0,0.00010818,2]
[348762901,1736775052223,-500.0,0.00010818,2]
[348762902,1736775052233,-500.0,0.00010818,2]
[348762903,1736775052243,-1099.94,0.00010818,2]
[348762904,1736775052252,-500.0,0.00010818,2]
[348762905,1736775052262,-502.61382146,0.00010818,2]
[348762906,1736775052271,-500.0,0.00010818,2]
[348762907,1736775052281,-500.0,0.00010818,2]
[348762908,1736775052290,-500.0,0.00010818,2]
[348762909,1736775052300,-500.0,0.00010818,2]
[348762910,1736775052309,-500.0,0.00010818,2]
[348762911,1736775052319,-500.0,0.00010818,2]
[348762912,1736775052328,-500.0,0.00010818,2]
[348762913,1736775052337,-500.0,0.00010818,2]
[348762914,1736775052346,-500.0,0.00010818,2]
[348762915,1736775052356,-500.0,0.00010818,2]
[348762916,1736775052365,-500.0,0.00010818,2]
[348762917,1736775052374,-1110.65,0.00010818,2]
[348762918,1736775052383,-500.0,0.00010818,2]
[348762919,1736775052392,-500.0,0.00010818,2]
[348762920,1736775052402,-500.0,0.00010818,2]
[348762921,1736775052411,-573.36804576,0.00010818,2]
[348762922,1736775052420,-500.0,0.00010818,2]
[348762923,1736775052430,-500.0,0.00010818,2]
[348762924,1736775052442,-500.0,0.00010818,2]
[348762925,1736775052452,-500.0,0.00010818,2]
[348762926,1736775052462,-500.0,0.00010818,2]
[348762927,1736775052472,-500.0,0.00010818,2]
[348762928,1736775052482,-500.0,0.00010818,2]
[348762929,1736775052491,-500.0,0.00010818,2]
[348762930,1736775052501,-500.0,0.00010818,2]
[348762931,1736775052510,-500.95048896,0.00010818,2]
[348762932,1736775052519,-500.0,0.00010818,2]
[348762933,1736775052529,-500.0,0.00010818,2]
[348762934,1736775052538,-500.0,0.00010818,2]
[348762935,1736775052547,-728.32,0.00010818,2]
[348762936,1736775052557,-500.0,0.00010818,2]
[348762937,1736775052566,-387.31369628,0.00010818,2]
[348762938,1736775052576,-500.0,0.00010818,2]
[348762939,1736775052585,-500.0,0.00010818,2]
[348762940,1736775052595,-500.0,0.00010818,2]
[348762941,1736775052605,-500.0,0.00010818,2]
[348762942,1736775052615,-500.0,0.00010818,2]
[348762943,1736775052624,-500.0,0.00010818,2]
[348762944,1736775052634,-500.0,0.00010818,2]
[348762945,1736775052643,-500.0,0.00010818,2]
[348762946,1736775052654,-500.0,0.00010818,2]
[348762947,1736775052663,-500.0,0.00010818,2]
[348762948,1736775052672,-2197.13,0.00010818,2]
[348762949,1736775052682,-500.0,0.00010818,2]
[348762950,1736775052693,-500.0,0.00010818,2]
[348762951,1736775052702,-500.0,0.00010818,2]
[348762952,1736775052711,-500.0,0.00010818,2]
[348762953,1736775052721,-500.0,0.00010818,2]
[348762954,1736775052731,-500.0,0.00010818,2]
[348762955,1736775052745,-500.0,0.00010818,2]
[348762956,1736775052755,-500.0,0.00010818,2]
[348762957,1736775052764,-1185.45,0.00010818,2]
[348762958,1736775052774,-500.0,0.00010818,2]
[348762959,1736775052785,-1208.95,0.00010818,2]
[348762960,1736775052794,-500.0,0.00010818,2]
[348762961,1736775052803,-500.0,0.00010818,2]
[348762962,1736775052813,-500.0,0.00010818,2]
[348762963,1736775052822,-500.0,0.00010818,2]
[348762964,1736775052832,-500.0,0.00010818,2]
[348762965,1736775052841,-1152.5,0.00010818,2]
[348762966,1736775052851,-500.0,0.00010818,2]
[348762967,1736775052861,-500.0,0.00010818,2]
[348762968,1736775052870,-500.0,0.00010818,2]
[348762969,1736775052879,-501.28097126,0.00010818,2]
[348762970,1736775052890,-500.0,0.00010818,2]
[348762971,1736775052899,-500.0,0.00010818,2]
[348762972,1736775052909,-689.38,0.00010818,2]
[348762973,1736775052919,-1320.75,0.00010818,2]
[348762974,1736775052928,-500.0,0.00010818,2]
[348762975,1736775052940,-500.0,0.00010818,2]
[348762976,1736775052950,-500.0,0.00010818,2]
[348762977,1736775052959,-1575.88,0.00010818,2]
[348762978,1736775052969,-500.0,0.00010818,2]
[348762979,1736775052979,-500.0,0.00010818,2]
[348762980,1736775052988,-500.0,0.00010818,2]
[348762981,1736775052997,-500.0,0.00010818,2]
[348762982,1736775053007,-500.0,0.00010818,2]
[348762983,1736775053016,-500.0,0.00010818,2]
[348762984,1736775053025,-500.0,0.00010818,2]
[348762985,1736775053034,-500.0,0.00010818,2]
[348762986,1736775053044,-500.0,0.00010818,2]
[348762987,1736775053054,-503.5304116,0.00010818,2]
[348762988,1736775053064,-2238.07,0.00010818,2]
[348762989,1736775053073,-500.0,0.00010818,2]
[348762990,1736775053083,-508.22,0.00010818,2]
[348762991,1736775053093,-500.0,0.00010818,2]
[348762992,1736775053102,-500.0,0.00010818,2]
[348762993,1736775053111,-500.0,0.00010818,2]
[348762994,1736775053120,-500.0,0.00010818,2]
[348762995,1736775053129,-500.0,0.00010818,2]
[348762996,1736775053139,-500.0,0.00010818,2]
[348762997,1736775053149,-500.0,0.00010818,2]
[348762998,1736775053158,-1232.35,0.00010818,2]
[348762999,1736775053169,-500.0,0.00010818,2]
[348763000,1736775053178,-500.0,0.00010818,2]
[348763001,1736775053187,-500.0,0.00010818,2]
[348763002,1736775053198,-500.0,0.00010818,2]
[348763003,1736775053207,-500.0,0.00010818,2]
[348763004,1736775053217,-500.0,0.00010818,2]
[348763005,1736775053226,-500.0,0.00010818,2]
[348763006,1736775053236,-500.0,0.00010818,2]
[348763007,1736775053246,-501.65918648,0.00010818,2]
[348763008,1736775053255,-503.58310311,0.00010818,2]
[348763009,1736775053265,-510.55,0.00010818,2]
[348763010,1736775053274,-500.0,0.00010818,2]
[348763011,1736775053284,-500.0,0.00010818,2]
[348763012,1736775053294,-500.0,0.00010818,2]
[348763013,1736775053303,-500.0,0.00010818,2]
[348763014,1736775053312,-500.0,0.00010818,2]
[348763015,1736775053321,-500.0,0.00010818,2]
[348763016,1736775053330,-986.46,0.00010818,2]
[348763017,1736775053339,-587.18,0.00010819,2]
[348763018,1736775053349,-500.0,0.00010819,2]
[348763019,1736775053358,-629.41,0.00010819,2]
[348763020,1736775053367,-500.0,0.00010819,2]
[348763021,1736775053376,-812.95,0.00010819,2]
[348763022,1736775053386,-500.0,0.00010819,2]
[348763023,1736775053395,-1314.06,0.00010819,2]
[348763024,1736775053404,-4803.76,0.00010819,2]
[348763025,1736775053413,-547.41,0.00010819,2]
[348763026,1736775053423,-500.0,0.00010819,2]
[348763027,1736775053432,-500.0,0.00010819,2]
[348763028,1736775053444,-1531.12,0.00010819,2]
[348763029,1736775053453,-500.0,0.00010819,2]
[348763030,1736775053627,-500.0,0.00010819,2]
[348763031,1736775053637,-699.85,0.00010819,2]
[348763032,1736775053647,-941.37,0.00010819,2]
[348763033,1736775053657,-500.0,0.00010819,2]
[348763034,1736775053666,-500.0,0.00010819,2]
[348763035,1736775053675,-748.41,0.00010819,2]
[348763036,1736775053684,-1633.71,0.00010819,2]
[348763037,1736775053695,-500.0,0.00010821,2]
[348763038,1736775053705,-500.0,0.00010821,2]
[348763039,1736775053714,-500.0,0.00010821,2]
[348763040,1736775053724,-2521.29,0.00010821,2]
[348763041,1736775053734,-1861.0,0.00010888,2]
[348763042,1736775053744,-2944.0,0.00010888,2]
[348763043,1736775053754,-909.0,0.00010888,2]
[348763044,1736775053764,-820.0,0.00010888,2]
[348763045,1736775053773,-1259.0,0.00010888,2]
[348763046,1736775053782,-537.0,0.00010888,2]
[348763047,1736775053793,-3977.0,0.00010888,2]
[348763048,1736775053803,-1104.0,0.00010888,2]
[348763049,1736775053812,-151.266,0.00010888,2]
[348763050,1736775053821,-1268.0,0.00010888,2]
[348763051,1736775053832,-151.0,0.00010888,2]
[348763052,1736775053843,-2016.0,0.00010888,2]
[348763053,1736775053853,-151.255,0.00010888,2]
[348763054,1736775053863,-3897.0,0.00010888,2]
[348763055,1736775053872,-541.37201657,0.000109,2]
[348763056,1736775053882,-1861.431,0.00010956,2]
[348763057,1736775053891,-179.654,0.00010956,2]
[348763058,1736775053900,-4000.0,0.00010959,2]
[348763059,1736775053909,-541.37201644,0.00010969,2]
[348763060,1736775053919,-811.49,0.00011,2]
[348763061,1736775053928,-550.0,0.00011,2]
[348763062,1736775053938,-1000.0,0.00011,2]
[348763063,1736775053949,-231.0,0.00011,2]
[348763064,1736775053959,-38232.76382607,0.00011,2]
[348763065,1736775053968,-200.38821308,0.00011,2]
[348763066,1736775053978,-174182.9220468,0.00011,2]
[348763067,1736775053987,-152.0,0.00011014,3]
[348763068,1736775053997,-541.37201644,0.00011038,2]
[348763069,1736775054006,-181.77,0.0001109,2]
[348763070,1736775054015,-500.0,0.0001109,2]
[348763071,1736775054024,-500.0,0.0001109,2]
[348763072,1736775054034,-500.0,0.0001109,2]
[348763073,1736775054043,-591.91,0.0001109,2]
[348763074,1736775054053,-505.45,0.0001109,2]
[348763075,1736775054063,-500.0,0.0001109,2]
[348763076,1736775054073,-500.0,0.0001109,2]
[348763077,1736775054083,-500.0,0.0001109,2]
[348763078,1736775054092,-500.0,0.0001109,2]
[348763079,1736775054101,-298.88,0.0001109,2]
[348763080,1736775054111,-435.05947957,0.0001109,2]
[348763081,1736775054120,-500.0,0.0001109,2]
[348763082,1736775054129,-574.3,0.0001109,2]
[348763083,1736775054138,-641.51,0.0001109,2]
[348763084,1736775054148,-500.0,0.0001109,2]
[348763085,1736775054157,-625.72,0.0001109,2]
[348763086,1736775054166,-500.0,0.0001109,2]
[348763087,1736775054175,-184.98,0.0001109,2]
[348763088,1736775054185,-617.79,0.0001109,2]
[348763089,1736775054196,-465.64,0.0001109,2]
[348763090,1736775054206,-500.0,0.0001109,2]
[348763091,1736775054215,-500.0,0.0001109,2]
[348763092,1736775054224,-500.0,0.0001109,2]
[348763093,1736775054233,-500.0,0.0001109,2]
[348763094,1736775054242,-686.43,0.0001109,2]
[348763095,1736775054251,-501.45,0.0001109,2]
[348763096,1736775054260,-514.11,0.0001109,2]
[348763097,1736775054270,-500.0,0.0001109,2]
[348763098,1736775054279,-580.94,0.0001109,2]
[348763099,1736775054289,-500.0,0.0001109,2]
[348763100,1736775054298,-500.0,0.0001109,2]
[348763101,1736775054307,-500.0,0.0001109,2]
[348763102,1736775054317,-606.51,0.0001109,2]
[348763103,1736775054326,-500.0,0.0001109,2]
[348763104,1736775054336,-565.25,0.0001109,2]
[348763105,1736775054345,-500.0,0.0001109,2]
[348763106,1736775054354,-536.63,0.0001109,2]
[348763107,1736775054363,-500.0,0.0001109,2]
[348763108,1736775054372,-2084.23,0.0001109,2]
[348763109,1736775054382,-500.0,0.0001109,2]
[348763110,1736775054391,-500.0,0.0001109,2]
[348763111,1736775054400,-500.0,0.0001109,2]
[348763112,1736775054409,-500.0,0.0001109,2]
[348763113,1736775054419,-1894.88,0.0001109,2]
[348763114,1736775054429,-597.39,0.0001109,2]
[348763115,1736775054439,-510.29,0.0001109,2]
[348763116,1736775054449,-500.0,0.0001109,2]
[348763117,1736775054459,-500.0,0.0001109,2]
[348763118,1736775054468,-500.0,0.0001109,2]
[348763119,1736775054479,-277.2,0.0001109,2]
[348763120,1736775054488,-500.0,0.0001109,2]
[348763121,1736775054497,-500.0,0.0001109,2]
[348763122,1736775054507,-500.0,0.0001109,2]
[348763123,1736775054516,-500.0,0.0001109,2]
[348763124,1736775054526,-500.0,0.0001109,2]
[348763125,1736775054536,-500.0,0.0001109,2]
[348763126,1736775054546,-500.0,0.0001109,2]
[348763127,1736775054556,-500.0,0.0001109,2]
[348763128,1736775054565,-500.0,0.0001109,2]
[348763129,1736775054575,-859.77,0.0001109,2]
[348763130,1736775054583,-500.0,0.0001109,2]
[348763131,1736775054593,-500.0,0.0001109,2]
[348763132,1736775054602,-500.0,0.0001109,2]
[348763133,1736775054611,-500.0,0.0001109,2]
[348763134,1736775054621,-627.10087218,0.0001109,2]
[348763135,1736775054630,-500.0,0.0001109,2]
[348763136,1736775054639,-500.0,0.0001109,2]
[348763137,1736775054648,-500.0,0.0001109,2]
[348763138,1736775054658,-500.0,0.0001109,2]
[348763139,1736775054667,-500.0,0.0001109,2]
[348763140,1736775054677,-500.0,0.00011091,2]
[348763141,1736775054686,-500.0,0.00011091,2]